bitfinex/quotes_SOLUSD_20241218
["timestamp","ask_amount","ask_price","bid_price","bid_amount"]
[1734497008692,19.0407986,216.42,216.32,0.69314825]
[1734497008889,0.5664696,216.42,216.32,0.69314825]
[1734497010772,0.5664696,216.42,216.32,7.42901419]
[1734497010995,0.5664696,216.42,216.35,20.0]
[1734497011204,0.5664696,216.42,216.36,0.69310158]
[1734497015267,0.5664696,216.42,216.35,20.0]
[1734497015506,18.12529419,216.41,216.29,1.9134]
[1734497015703,18.12529419,216.4,216.3,0.69318351]
[1734497016191,18.12529419,216.38,216.3,0.69318351]
[1734497016379,18.12529419,216.39,216.3,0.69318351]
[1734497016699,18.12529419,216.39,216.31,0.69323419]
[1734497016898,0.81649593,216.4,216.28,0.69323431]
[1734497017201,18.12529419,216.4,216.29,6.73586594]
[1734497017384,41.90217819,216.41,216.3,0.69322427]
[1734497017586,1.38296553,216.42,216.33,20.0]
[1734497017774,0.5664696,216.42,216.34,0.69322748]
[1734497018098,0.5664696,216.42,216.34,7.42909342]
[1734497018901,18.12529419,216.41,216.32,0.69309633]
[1734497019396,18.94179012,216.4,216.32,0.69309633]
[1734497019603,18.12529419,216.39,216.32,0.69309633]
[1734497019808,18.12529419,216.41,216.32,0.69309633]
[1734497020116,1.38296553,216.42,216.29,0.69326209]
[1734497020117,0.81649593,216.4,216.29,0.69326209]
[1734497020781,0.81649593,216.4,216.3,20.0]
[1734497020988,24.59337993,216.41,216.31,0.69323534]
[1734497021988,18.12529419,216.37,216.29,20.0]
[1734497022193,24.59337993,216.41,216.22,2.3124]
[1734497022194,18.12529419,216.35,216.24,136.7134]
[1734497022381,18.94179012,216.34,216.25,0.69339216]
[1734497022582,18.12529419,216.33,216.23,0.69345292]
[1734497022804,0.81649593,216.32,216.22,0.69348633]
[1734497023576,23.776884,216.36,216.22,0.69348633]
[1734497023805,24.59337993,216.36,216.23,20.69337928]
[1734497024196,2.0617,216.38,216.23,161.773523]
[1734497024511,30.19406442,216.58,216.28,20.0]
[1734497024512,18.69176379,216.42,216.28,20.0]
[1734497024819,6.82049593,216.41,216.29,0.69324103]
[1734497025487,18.12529419,216.4,216.29,0.69324103]
[1734497025704,42.71867412,216.39,216.29,0.69324103]
[1734497025918,24.59337993,216.39,216.29,0.69324103]
[1734497026221,23.776884,216.4,216.29,0.69324103]
[1734497026408,6.004,216.41,216.28,20.69322667]
[1734497026708,0.5664696,216.42,216.31,20.0]
[1734497026904,0.5664696,216.42,216.32,0.69313144]
[1734497030000,0.5664696,216.42,216.33,20.0]
[1734497030209,0.5664696,216.42,216.34,0.69302845]
[1734497031206,0.5664696,216.42,216.35,2.311]
[1734497031388,0.5664696,216.42,216.36,20.69297722]
[1734497032012,0.5664696,216.42,216.36,0.69297722]
[1734497032313,0.5664696,216.42,216.37,2.3108]
[1734497032504,0.5664696,216.42,216.4,20.0]
[1734497032705,0.5664696,216.42,216.41,0.69286013]
[1734497034202,0.5664696,216.42,216.38,0.69285343]
[1734497034516,0.5664696,216.42,216.41,20.0]
[1734497034713,0.5664696,216.42,216.41,20.69286207]
[1734497034914,0.5664696,216.42,216.41,0.69286207]
[1734497037417,0.5664696,216.42,216.41,20.69286207]
[1734497041124,0.81649593,216.52,216.41,155.49286207]
[1734497041428,11.25628637,216.58,216.45,20.0]
[1734497041616,27.85733493,216.59,216.46,0.69273161]
[1734497041796,8.5815,216.59,216.49,20.0]
[1734497041994,0.81649593,216.58,216.49,20.0]
[1734497042217,0.81649593,216.58,216.5,0.69268479]
[1734497042724,0.81649593,216.58,216.49,20.0]
[1734497042924,11.25628637,216.54,216.45,20.0]
[1734497043106,12.0727823,216.53,216.43,0.69285343]
[1734497043424,0.81649593,216.53,216.43,0.69285343]
[1734497044227,0.81649593,216.53,216.44,20.0]
[1734497044429,12.0727823,216.53,216.44,20.0]
[1734497044727,0.81649593,216.53,216.44,20.0]
[1734497044938,11.25628637,216.53,216.44,20.0]
[1734497045101,0.81649593,216.52,216.44,20.0]
[1734497045936,0.81649593,216.52,216.42,0.69286631]
[1734497046132,41.79002829,216.49,216.39,0.69292218]
[1734497046341,0.81649593,216.48,216.39,0.69292218]
[1734497047108,0.81649593,216.48,216.38,0.6930109]
[1734497048234,18.01314429,216.53,216.38,0.6930109]
[1734497048434,24.59337993,216.52,216.38,0.6930109]
[1734497048608,24.59337993,216.52,216.4,20.0]
[1734497048808,24.59337993,216.52,216.41,0.69290553]
[1734497049235,18.01314429,216.46,216.38,0.69293144]
[1734497049411,18.82964022,216.45,216.35,0.69293144]
[1734497049734,0.81649593,216.45,216.35,0.69293144]
[1734497050048,1.9469,216.48,216.35,0.69293144]
[1734497050262,6.621,216.49,216.35,141.77307516]
[1734497050564,6.621,216.49,216.36,6.28014372]
[1734497050755,6.621,216.49,216.39,20.0]
[1734497051044,23.776884,216.48,216.39,20.0]
[1734497051209,24.63414429,216.49,216.4,0.69298593]
[1734497051412,6.621,216.49,216.4,0.69298593]
[1734497052044,7.43749593,216.49,216.4,0.69298593]
[1734497052219,7.43749593,216.49,216.44,18.01391154]
[1734497052950,23.776884,216.51,216.46,18.01391154]
[1734497053153,24.59337993,216.51,216.46,18.01391154]
[1734497053619,6.621,216.54,216.49,18.01391154]
[1734497053824,0.81649593,216.57,216.41,2.0357]
[1734497053825,0.81649593,216.55,216.5,18.01391154]
[1734497054130,18.01391154,216.57,216.5,18.01391154]
[1734497054530,20.77730747,216.58,216.52,18.01391154]
[1734497055261,0.81649593,216.6,216.57,18.01391154]
[1734497055432,18.01391154,216.69,216.59,18.01391154]
[1734497055747,0.81649593,216.68,216.62,18.01391154]
[1734497056529,18.58038114,216.64,216.56,18.01391154]
[1734497056826,18.01391154,216.61,216.54,18.01391154]
[1734497057065,18.01391154,216.62,216.55,18.01391154]
[1734497057360,0.81649593,216.61,216.56,18.01391154]
[1734497058067,0.81649593,216.61,216.55,18.01391154]
[1734497058629,0.81649593,216.61,216.56,18.01391154]
[1734497058955,24.59337993,216.62,216.56,18.01391154]
[1734497059250,24.59337993,216.62,216.57,18.01391154]
[1734497060769,24.59337993,216.63,216.57,18.01391154]
[1734497061874,0.5664696,216.64,216.6,18.01391154]
[1734497062359,0.5664696,216.64,216.61,18.01391154]
[1734497063369,0.5664696,216.64,216.62,18.01391154]
[1734497064568,0.5664696,216.64,216.61,18.01391154]
[1734497064984,0.5664696,216.64,216.62,18.01391154]
[1734497065269,0.5664696,216.64,216.63,18.01391154]
[1734497066136,0.5664696,216.64,216.62,18.01391154]
[1734497067171,0.5664696,216.64,216.63,18.01391154]
[1734497067379,0.5664696,216.64,216.61,18.01391154]
[1734497067735,0.5664696,216.64,216.58,18.01391154]
[1734497067953,1.38296553,216.64,216.57,11.24434476]
[1734497068241,1.38296553,216.64,216.53,7.21099243]
[1734497068242,0.5664696,216.64,216.61,11.24434476]
[1734497068464,0.5664696,216.64,216.55,0.69243458]
[1734497068773,0.5664696,216.64,216.59,11.24434476]
[1734497069079,0.81649593,216.63,216.58,11.24434476]
[1734497069229,0.81649593,216.63,216.59,11.24434476]
[1734497069627,0.81649593,216.63,216.58,11.24434476]
[1734497069887,35.02122876,216.62,216.54,11.24434476]
[1734497070189,11.24434476,216.59,216.52,11.24434476]
[1734497070480,24.59337993,216.58,216.52,11.24434476]
[1734497070631,11.24434476,216.57,216.47,0.69270428]
[1734497070826,6.0764,216.62,216.53,11.24434476]
[1734497070827,23.776884,216.59,216.53,11.24434476]
[1734497071068,24.59337993,216.59,216.53,11.24434476]
[1734497071443,0.81649593,216.59,216.53,11.24434476]
[1734497071878,0.81649593,216.59,216.47,3.00240428]
[1734497071879,23.776884,216.58,216.52,11.24434476]
[1734497072087,0.81649593,216.57,216.5,11.24434476]
[1734497072369,0.81649593,216.57,216.52,11.24434476]
[1734497073350,0.81649593,216.57,216.53,11.24434476]
[1734497073845,0.81649593,216.57,216.52,11.24434476]
[1734497074485,0.81649593,216.57,216.49,20.69273058]
[1734497074699,0.81649593,216.57,216.49,20.0]
[1734497074860,0.81649593,216.57,216.51,11.24434476]
[1734497075208,0.81649593,216.57,216.52,11.24434476]
[1734497075511,24.59337993,216.58,216.53,11.24434476]
[1734497075753,11.24434476,216.6,216.55,11.24434476]
[1734497075754,24.59337993,216.6,216.55,11.24434476]
[1734497076007,6.0764,216.62,216.59,11.24434476]
[1734497076206,0.81649593,216.61,216.56,11.24434476]
[1734497076406,0.81649593,216.62,216.56,11.24434476]
[1734497076568,23.776884,216.61,216.56,11.24434476]
[1734497076769,24.59337993,216.62,216.56,11.24434476]
[1734497078788,35.83772469,216.62,216.52,0.69255954]
[1734497078988,35.83772469,216.62,216.55,11.24434476]
[1734497079207,24.59337993,216.62,216.56,11.24434476]
[1734497081081,24.59337993,216.62,216.57,11.24434476]
[1734497081508,24.59337993,216.62,216.56,11.24434476]
[1734497086475,24.59337993,216.62,216.54,11.24434476]
[1734497086476,35.83772469,216.62,216.54,11.24434476]
[1734497086766,35.83772469,216.62,216.55,11.24434476]
[1734497086962,24.59337993,216.62,216.56,11.24434476]
[1734497087884,0.81649593,216.62,216.57,11.24434476]
[1734497088037,0.5664696,216.64,216.6,11.24434476]
[1734497088232,0.5664696,216.64,216.61,11.24434476]
[1734497089069,0.5664696,216.64,216.6,11.24434476]
[1734497089446,23.776884,216.63,216.58,11.24434476]
[1734497089681,0.81649593,216.62,216.58,11.24434476]
[1734497089871,0.81649593,216.62,216.57,11.24434476]
[1734497091679,0.81649593,216.62,216.58,11.24434476]
[1734497091984,0.81649593,216.62,216.57,11.24434476]
[1734497093688,0.81649593,216.62,216.58,11.24434476]
[1734497094169,0.5664696,216.64,216.6,11.24434476]
[1734497094359,0.5664696,216.64,216.61,11.24434476]
[1734497094792,0.5664696,216.64,216.6,11.24434476]
[1734497097613,0.5664696,216.64,216.59,11.24434476]
[1734497097886,0.5664696,216.64,216.56,0.69243367]
[1734497097887,0.5664696,216.64,216.6,11.24434476]
[1734497098669,0.5664696,216.64,216.59,11.24434476]
[1734497098881,1.38296553,216.64,216.59,11.24434476]
[1734497099282,12.62731029,216.64,216.57,11.24434476]
[1734497100272,35.02122876,216.63,216.56,11.24434476]
[1734497100470,35.02122876,216.59,216.53,11.24434476]
[1734497100668,0.81649593,216.58,216.53,11.24434476]
[1734497100893,0.81649593,216.58,216.54,11.24434476]
[1734497102081,0.81649593,216.58,216.53,11.24434476]
[1734497102395,0.81649593,216.58,216.54,11.24434476]
[1734497102765,0.81649593,216.58,216.47,2.71393099]
[1734497102766,23.776884,216.57,216.51,11.24434476]
[1734497103087,35.02122876,216.55,216.48,11.24434476]
[1734497103291,35.02122876,216.52,216.45,11.24434476]
[1734497103588,0.81649593,216.51,216.46,11.24434476]
[1734497104496,23.776884,216.5,216.44,11.24434476]
[1734497104709,0.81649593,216.49,216.44,11.24434476]
[1734497105004,35.02122876,216.48,216.41,11.24434476]
[1734497105224,12.06084069,216.47,216.41,11.24434476]
[1734497105715,23.776884,216.46,216.4,11.24434476]
[1734497105880,0.81649593,216.45,216.39,11.24434476]
[1734497106081,35.02122876,216.44,216.38,11.24434476]
[1734497106398,0.81649593,216.43,216.38,11.24434476]
[1734497107306,0.81649593,216.43,216.37,11.24434476]
[1734497107477,23.776884,216.42,216.37,11.24434476]
[1734497107681,0.81649593,216.41,216.36,11.24434476]
[1734497108012,0.81649593,216.41,216.35,11.24434476]
[1734497108340,11.24434476,216.36,216.29,11.24434476]
[1734497108495,35.83772469,216.35,216.29,11.24434476]
[1734497108699,35.02122876,216.33,216.27,11.24434476]
[1734497108923,35.02122876,216.33,216.23,1.9654]
[1734497108924,11.24434476,216.31,216.24,11.24434476]
[1734497109131,23.776884,216.29,216.23,11.24434476]
[1734497109281,0.81649593,216.28,216.23,11.24434476]
[1734497110301,12.06084069,216.28,216.21,11.24434476]
[1734497110618,11.24434476,216.26,216.2,11.24434476]
[1734497110784,0.81649593,216.25,216.2,11.24434476]
[1734497110980,12.06084069,216.26,216.2,11.24434476]
[1734497111489,0.81649593,216.26,216.2,11.24434476]
[1734497112246,11.24434476,216.21,216.15,11.24434476]
[1734497112599,0.81649593,216.2,216.14,11.24434476]
[1734497113397,0.81649593,216.35,216.19,11.24434476]
[1734497113768,11.24434476,216.34,216.27,11.24434476]
[1734497114038,11.24434476,216.38,216.31,11.24434476]
[1734497114228,11.24434476,216.4,216.33,11.24434476]
[1734497114552,0.81649593,216.39,216.33,11.24434476]
[1734497114753,11.24434476,216.38,216.31,11.24434476]
[1734497115042,11.24434476,216.36,216.28,11.24434476]
[1734497115198,0.81649593,216.35,216.28,11.24434476]
[1734497115854,0.81649593,216.35,216.31,11.24434476]
[1734497116011,24.59337993,216.37,216.31,11.24434476]
[1734497116537,0.81649593,216.37,216.33,11.24434476]
[1734497116742,0.81649593,216.39,216.33,11.24434476]
[1734497117043,11.24434476,216.38,216.31,11.24434476]
[1734497117225,12.06084069,216.37,216.3,11.24434476]
[1734497117543,11.24434476,216.36,216.28,11.24434476]
[1734497117712,0.81649593,216.35,216.29,11.24434476]
[1734497118510,0.81649593,216.35,216.3,11.24434476]
[1734497118818,24.59337993,216.36,216.3,11.24434476]
[1734497119014,24.59337993,216.36,216.31,11.24434476]
[1734497119349,24.59337993,216.36,216.3,11.24434476]
[1734497119515,24.59337993,216.36,216.32,11.24434476]
[1734497120139,24.59337993,216.36,216.31,11.24434476]
[1734497120650,24.59337993,216.36,216.26,20.69341431]
[1734497120834,24.59337993,216.36,216.31,11.24434476]
[1734497121153,24.59337993,216.36,216.3,11.24434476]
[1734497121948,24.59337993,216.36,216.24,1.9654]
[1734497121949,11.24434476,216.34,216.24,1.9654]
[1734497122241,35.02122876,216.31,216.24,11.24434476]
[1734497122543,23.776884,216.29,216.24,11.24434476]
[1734497122751,0.81649593,216.28,216.26,11.24434476]
[1734497123115,0.81649593,216.28,216.25,11.24434476]
[1734497123504,18.480084,216.37,216.2,6.40436594]
[1734497123505,0.81649593,216.31,216.27,11.24434476]
[1734497123859,0.81649593,216.36,216.3,11.24434476]
[1734497124010,0.81649593,216.36,216.31,11.24434476]
[1734497124845,0.81649593,216.37,216.31,11.24434476]
[1734497125918,12.06084069,216.37,216.3,11.24434476]
[1734497126144,23.776884,216.36,216.3,11.24434476]
[1734497126460,23.776884,216.36,216.29,11.24434476]
[1734497126461,23.776884,216.34,216.29,11.24434476]
[1734497126609,23.776884,216.32,216.28,11.24434476]
[1734497126810,0.81649593,216.31,216.27,11.24434476]
[1734497127055,0.81649593,216.31,216.28,11.24434476]
[1734497128347,0.81649593,216.31,216.29,11.24434476]
[1734497128658,0.81649593,216.35,216.3,11.24434476]
[1734497128956,0.81649593,216.35,216.31,11.24434476]
[1734497129127,11.24434476,216.36,216.29,11.24434476]
[1734497129466,0.81649593,216.35,216.3,11.24434476]
[1734497129641,0.81649593,216.35,216.31,11.24434476]
[1734497129847,12.06084069,216.37,216.3,11.24434476]
[1734497130520,23.776884,216.36,216.3,11.24434476]
[1734497130722,0.81649593,216.35,216.3,11.24434476]
[1734497131531,23.776884,216.34,216.28,11.24434476]
[1734497131765,35.02122876,216.32,216.25,11.24434476]
[1734497131931,23.776884,216.3,216.25,11.24434476]
[1734497132147,0.81649593,216.29,216.23,11.24434476]
[1734497132540,0.81649593,216.29,216.2,6.40436594]
[1734497132541,0.81649593,216.29,216.25,11.24434476]
[1734497132983,0.81649593,216.29,216.26,11.24434476]
[1734497133535,11.24434476,216.34,216.28,11.24434476]
[1734497133735,24.59337993,216.33,216.27,11.24434476]
[1734497134172,24.59337993,216.33,216.28,11.24434476]
[1734497134882,24.59337993,216.33,216.23,20.6935516]
[1734497135068,24.59337993,216.33,216.28,11.24434476]
[1734497135375,11.5523,216.41,216.31,11.24434476]
[1734497135376,11.24434476,216.38,216.31,11.24434476]
[1734497135580,0.81649593,216.37,216.31,11.24434476]
[1734497135889,12.06084069,216.37,216.3,11.24434476]
[1734497136244,12.06084069,216.37,216.25,0.69341066]
[1734497136245,0.81649593,216.37,216.31,11.24434476]
[1734497136642,23.776884,216.36,216.3,11.24434476]
[1734497136845,0.81649593,216.35,216.3,11.24434476]
[1734497137084,0.81649593,216.35,216.29,11.24434476]
[1734497137267,23.776884,216.34,216.28,11.24434476]
[1734497137470,0.81649593,216.33,216.27,11.24434476]
[1734497137658,23.776884,216.32,216.26,11.24434476]
[1734497137866,0.81649593,216.31,216.26,11.24434476]
[1734497138238,23.776884,216.3,216.25,11.24434476]
[1734497138444,0.81649593,216.29,216.25,11.24434476]
[1734497138844,0.81649593,216.29,216.26,11.24434476]
[1734497140479,0.81649593,216.29,216.27,11.24434476]
[1734497141185,0.81649593,216.33,216.27,11.24434476]
[1734497141681,11.24434476,216.33,216.26,11.24434476]
[1734497141841,0.81649593,216.32,216.26,11.24434476]
[1734497143067,0.81649593,216.32,216.27,11.24434476]
[1734497143261,11.5539,216.38,216.28,11.24434476]
[1734497143262,24.59337993,216.33,216.28,11.24434476]
[1734497143668,0.81649593,216.33,216.3,11.24434476]
[1734497143881,23.776884,216.35,216.3,11.24434476]
[1734497144096,0.81649593,216.34,216.3,11.24434476]
[1734497144477,0.81649593,216.36,216.3,11.24434476]
[1734497145405,0.81649593,216.36,216.31,11.24434476]
[1734497145570,0.81649593,216.37,216.31,11.24434476]
[1734497146096,0.81649593,216.37,216.33,11.24434476]
[1734497146267,0.81649593,216.39,216.35,11.24434476]
[1734497146702,0.81649593,216.41,216.35,11.24434476]
[1734497148570,23.776884,216.4,216.34,11.24434476]
[1734497148904,0.81649593,216.39,216.34,11.24434476]
[1734497149487,24.59337993,216.4,216.36,11.24434476]
[1734497149700,0.81649593,216.42,216.36,11.24434476]
[1734497149902,11.24434476,216.4,216.33,11.24434476]
[1734497150107,0.81649593,216.39,216.33,11.24434476]
[1734497150410,0.81649593,216.39,216.31,20.0]
[1734497150411,0.81649593,216.4,216.35,11.24434476]
[1734497150623,24.59337993,216.41,216.36,11.24434476]
[1734497150983,35.83772469,216.41,216.34,11.24434476]
[1734497151205,24.59337993,216.41,216.35,11.24434476]
[1734497152082,24.59337993,216.41,216.29,1.9382]
[1734497152083,0.81649593,216.45,216.4,11.24434476]
[1734497152311,11.24434476,216.47,216.4,11.24434476]
[1734497152513,11.24434476,216.45,216.38,11.24434476]
[1734497152811,12.06084069,216.44,216.37,11.24434476]
[1734497153984,0.81649593,216.44,216.38,11.24434476]
[1734497155211,0.81649593,216.44,216.39,11.24434476]
[1734497155414,20.0,216.48,216.35,20.69315047]
[1734497155415,35.02122876,216.45,216.38,11.24434476]
[1734497155599,0.81649593,216.44,216.38,11.24434476]
[1734497155990,0.81649593,216.44,216.41,11.24434476]
[1734497156187,0.81649593,216.44,216.35,20.69315047]
[1734497156188,23.776884,216.45,216.39,11.24434476]
[1734497156409,12.06084069,216.44,216.38,11.24434476]
[1734497156597,0.81649593,216.44,216.39,11.24434476]
[1734497156921,0.81649593,216.44,216.4,11.24434476]
[1734497157092,0.81649593,216.44,216.41,11.24434476]
[1734497157310,23.776884,216.45,216.41,11.24434476]
[1734497157621,0.81649593,216.44,216.4,11.24434476]
[1734497159404,0.81649593,216.44,216.41,11.24434476]
[1734497159937,0.81649593,216.44,216.4,11.24434476]
[1734497160235,0.81649593,216.44,216.41,11.24434476]
[1734497160416,0.81649593,216.44,216.4,11.24434476]
[1734497162402,0.81649593,216.44,216.35,20.69315047]
[1734497162403,0.81649593,216.44,216.39,11.24434476]
[1734497162607,0.81649593,216.44,216.4,11.24434476]
[1734497164046,0.81649593,216.44,216.39,11.24434476]
[1734497164438,0.81649593,216.44,216.4,11.24434476]
[1734497165316,24.59337993,216.46,216.41,11.24434476]
[1734497165714,0.81649593,216.47,216.43,11.24434476]
[1734497166137,12.06084069,216.49,216.42,11.24434476]
[1734497166341,11.24434476,216.48,216.41,11.24434476]
[1734497166515,0.81649593,216.47,216.41,11.24434476]
[1734497167543,23.776884,216.46,216.41,11.24434476]
[1734497167743,0.81649593,216.45,216.41,11.24434476]
[1734497169750,24.59337993,216.47,216.41,11.24434476]
[1734497169951,24.59337993,216.47,216.41,7.20728167]
[1734497172834,24.59337993,216.47,216.42,7.20728167]
[1734497173232,0.81649593,216.47,216.38,0.69306139]
[1734497173438,23.776884,216.48,216.42,7.20728167]
[1734497173642,0.81649593,216.47,216.42,7.20728167]
[1734497174322,0.81649593,216.47,216.43,7.20728167]
[1734497175837,0.81649593,216.47,216.44,7.20728167]
[1734497176243,0.81649593,216.47,216.43,7.20728167]
[1734497177965,0.81649593,216.47,216.42,7.20728167]
[1734497178170,23.776884,216.46,216.41,7.20728167]
[1734497178321,23.776884,216.44,216.36,0.69307928]
[1734497178526,0.81649593,216.43,216.38,7.20728167]
[1734497178734,0.81649593,216.43,216.39,7.20728167]
[1734497179169,24.59337993,216.45,216.4,7.20728167]
[1734497180650,24.59337993,216.45,216.34,0.69313996]
[1734497180840,24.59337993,216.45,216.4,7.20728167]
[1734497181040,24.59337993,216.45,216.41,7.20728167]
[1734497181245,24.59337993,216.45,216.4,7.20728167]
[1734497183267,31.8006616,216.45,216.38,7.20728167]
[1734497183479,24.59337993,216.45,216.39,7.20728167]
[1734497183690,24.59337993,216.45,216.4,7.20728167]
[1734497184053,24.59337993,216.45,216.34,6.45833923]
[1734497184054,7.20728167,216.44,216.34,6.45833923]
[1734497184262,23.776884,216.4,216.34,7.20728167]
[1734497184580,0.81649593,216.39,216.33,7.20728167]
[1734497184749,8.0237776,216.39,216.32,7.20728167]
[1734497184947,7.20728167,216.37,216.3,7.20728167]
[1734497185153,23.776884,216.35,216.29,7.20728167]
[1734497185469,23.776884,216.35,216.24,2.65211387]
[1734497185470,30.98416567,216.31,216.24,1.9587]
[1734497185650,24.59337993,216.3,216.21,5.25964372]
[1734497185852,24.59337993,216.3,216.23,7.20728167]
[1734497186077,31.8006616,216.3,216.23,7.20728167]
[1734497186465,31.8006616,216.3,216.2,0.69347735]
[1734497186675,7.20728167,216.28,216.2,0.69347735]
[1734497186882,7.20728167,216.28,216.19,1.9587]
[1734497186883,0.81649593,216.27,216.21,7.20728167]
[1734497187085,23.776884,216.26,216.2,7.20728167]
[1734497187291,0.81649593,216.25,216.2,7.20728167]
[1734497187490,0.81649593,216.25,216.19,1.9587]
[1734497187695,0.81649593,216.25,216.2,7.20728167]
[1734497188065,0.81649593,216.25,216.2,11.28259516]
[1734497189068,0.81649593,216.25,216.14,1.9587]
[1734497189069,12.09909109,216.25,216.19,11.28259516]
[1734497189960,0.81649593,216.25,216.19,11.28259516]
[1734497190175,34.37597509,216.26,216.19,11.28259516]
[1734497190466,11.28259516,216.24,216.18,11.28259516]
[1734497192167,11.28259516,216.22,216.16,11.28259516]
[1734497192510,11.28259516,216.17,216.11,11.28259516]
[1734497192677,23.776884,216.18,216.1,11.28259516]
[1734497192678,23.776884,216.15,216.1,11.28259516]
[1734497192993,35.05947916,216.15,216.09,11.28259516]
[1734497193761,11.28259516,216.14,216.08,11.28259516]
[1734497194074,23.776884,216.13,216.08,11.28259516]
[1734497194267,35.05947916,216.13,216.07,11.28259516]
[1734497194596,23.776884,216.13,216.07,11.28259516]
[1734497195185,11.28259516,216.11,216.05,11.28259516]
[1734497195402,35.05947916,216.09,216.03,11.28259516]
[1734497195596,23.776884,216.08,216.03,11.28259516]
[1734497196471,35.05947916,216.05,215.99,11.28259516]
[1734497196680,11.28259516,216.05,215.99,11.28259516]
[1734497196889,23.776884,216.04,215.99,11.28259516]
[1734497197524,35.05947916,216.04,215.98,11.28259516]
[1734497197803,11.28259516,216.03,215.97,11.28259516]
[1734497198005,23.776884,216.02,215.97,11.28259516]
[1734497198868,23.776884,216.02,215.96,11.28259516]
[1734497199275,23.776884,216.03,215.97,11.28259516]
[1734497199482,35.05947916,216.03,215.97,11.28259516]
[1734497199905,23.776884,216.03,215.97,11.28259516]
[1734497200117,35.05947916,216.01,215.94,11.28259516]
[1734497200280,23.776884,215.98,215.93,11.28259516]
[1734497200779,23.776884,215.98,215.88,8.6810696]
[1734497200780,23.776884,215.98,215.94,11.28259516]
[1734497201173,1.9381,216.05,215.92,11.28259516]
[1734497201174,35.05947916,215.99,215.92,11.28259516]
[1734497201598,23.776884,215.99,215.93,11.28259516]
[1734497201802,35.05947916,215.99,215.92,11.28259516]
[1734497202327,35.05947916,215.97,215.9,11.28259516]
[1734497202505,23.776884,215.96,215.9,11.28259516]
[1734497203113,23.776884,215.98,215.94,11.28259516]
[1734497203297,35.05947916,215.99,215.92,11.28259516]
[1734497203500,11.28259516,215.98,215.92,11.28259516]
[1734497203708,23.776884,215.97,215.91,11.28259516]
[1734497204729,11.28259516,215.96,215.89,11.28259516]
[1734497205036,23.776884,215.96,215.88,0.5664696]
[1734497205334,35.05947916,215.96,215.89,11.28259516]
[1734497206591,23.776884,215.94,215.88,11.84906476]
[1734497207126,11.28259516,215.9,215.88,0.5664696]
[1734497207323,35.05947916,215.89,215.88,0.5664696]
[1734497207824,23.776884,215.89,215.88,0.5664696]
[1734497208197,35.05947916,215.89,215.88,0.5664696]
[1734497208396,23.776884,215.89,215.88,0.5664696]
[1734497210204,35.05947916,215.89,215.88,0.5664696]
[1734497211417,35.05947916,215.89,215.72,2.58050668]
[1734497211418,41.37177916,215.89,215.72,7.9667]
[1734497211619,35.05947916,215.79,215.72,7.9667]
[1734497211826,11.28259516,215.78,215.72,13.17389516]
[1734497212208,35.05947916,215.79,215.73,11.28259516]
[1734497212610,35.05947916,215.79,215.72,13.17389516]
[1734497212923,35.05947916,215.79,215.69,11.28259516]
[1734497212924,11.28259516,215.75,215.69,11.28259516]
[1734497213316,11.28259516,215.76,215.69,11.28259516]
[1734497213515,23.776884,215.75,215.69,11.28259516]
[1734497213927,35.05947916,215.75,215.69,11.28259516]
[1734497214933,35.05947916,215.75,215.68,11.28259516]
[1734497215110,11.28259516,215.73,215.66,2.4577696]
[1734497215316,11.28259516,215.72,215.66,2.4577696]
[1734497215542,11.28259516,215.7,215.66,0.5664696]
[1734497215708,11.28259516,215.68,215.66,0.5664696]
[1734497216736,11.28259516,215.67,215.66,0.5664696]
[1734497217234,35.05947916,215.67,215.66,0.5664696]
[1734497217603,11.28259516,215.7,215.66,0.5664696]
[1734497217827,35.05947916,215.69,215.66,0.5664696]
[1734497218233,11.28259516,215.68,215.66,0.5664696]
[1734497219135,35.05947916,215.67,215.66,0.5664696]
[1734497220610,35.05947916,215.67,215.66,6.96e-05]
[1734497220611,41.37177916,215.67,215.66,6.96e-05]
[1734497221099,41.37177916,215.67,215.53,11.28259516]
[1734497221100,20.0,215.63,215.53,11.28259516]
[1734497221343,31.28259516,215.63,215.56,11.28259516]
[1734497221638,11.28259516,215.61,215.55,11.28259516]
[1734497221935,11.28259516,215.61,215.54,11.28259516]
[1734497222842,11.28259516,215.62,215.55,11.28259516]
[1734497223038,11.28259516,215.63,215.56,11.28259516]
[1734497223421,11.28259516,215.62,215.56,11.28259516]
[1734497223629,35.05947916,215.63,215.56,11.28259516]
[1734497223828,11.28259516,215.62,215.56,11.28259516]
[1734497224045,11.28259516,215.61,215.54,11.28259516]
[1734497224243,20.0,215.64,215.53,11.28259516]
[1734497224244,11.28259516,215.59,215.53,11.28259516]
[1734497224547,11.28259516,215.56,215.5,11.28259516]
[1734497224875,11.28259516,215.57,215.5,11.28259516]
[1734497225520,11.28259516,215.61,215.54,11.28259516]
[1734497225755,11.28259516,215.61,215.55,11.28259516]
[1734497225914,11.28259516,215.61,215.54,11.28259516]
[1734497226130,11.28259516,215.61,215.55,11.28259516]
[1734497226330,11.28259516,215.61,215.54,11.28259516]